fUSD/lending_fUSD_20240331
["ID","MTS","AMOUNT","RATE_DAILY","PERIOD"]
[321143954,1711908686656,-500.0,0.0005726,120]
[321143955,1711908686666,-1062.57,0.0005726,120]
[321143956,1711908686675,-502.6,0.0005726,120]
[321143957,1711908686686,-500.0,0.0005726,120]
[321143958,1711908686700,-500.0,0.0005726,120]
[321143959,1711908686709,-500.0,0.0005726,120]
[321143960,1711908686718,-500.0,0.0005726,120]
[321143961,1711908686726,-500.0,0.0005726,120]
[321143962,1711908686737,-500.0,0.0005726,2]
[321143963,1711908686746,-500.0,0.0005726,120]
[321143964,1711908686754,-980.98,0.0005726,120]
[321143965,1711908686766,-500.0,0.0005726,120]
[321143966,1711908686775,-500.0,0.0005726,120]
[321143967,1711908686785,-500.0,0.0005726,120]
[321143968,1711908686794,-500.0,0.0005726,120]
[321143969,1711908686802,-529.82,0.0005726,120]
[321143970,1711908686811,-500.0,0.0005726,120]
[321143971,1711908686820,-691.41,0.0005726,120]
[321143972,1711908686830,-500.0,0.0005726,120]
[321143973,1711908686840,-500.0,0.0005726,120]
[321143974,1711908686851,-500.0,0.0005726,120]
[321143975,1711908686861,-500.0,0.0005726,120]
[321143976,1711908686871,-500.0,0.0005726,120]
[321143977,1711908686880,-500.0,0.0005726,120]
[321143978,1711908686889,-203.88660723,0.0005726,120]
[321143979,1711908686900,-535.03,0.0005726,120]
[321143980,1711908686910,-834.12,0.0005726,120]
[321143981,1711908686920,-500.0,0.0005726,120]
[321143982,1711908686930,-500.0,0.0005726,120]
[321143983,1711908686939,-192.71,0.0005726,120]
[321143984,1711908686949,-270.85132212,0.0005726,120]
[321143985,1711908686958,-597.15,0.0005726,120]
[321143986,1711908686967,-500.0,0.0005726,120]
[321143987,1711908686976,-2161.52,0.0005726,120]
[321143988,1711908686985,-523.05,0.0005726,120]
[321143989,1711908686994,-576.51176362,0.0005726,120]
[321143990,1711908687003,-500.0,0.0005726,120]
[321143991,1711908687012,-500.0,0.0005726,120]
[321143992,1711908687021,-851.6,0.0005726,120]
[321143993,1711908687030,-500.0,0.0005726,120]
[321143994,1711908687039,-552.74,0.0005726,120]
[321143995,1711908687048,-500.0,0.0005726,120]
[321143996,1711908687057,-1120.95,0.0005726,120]
[321143997,1711908687067,-500.0,0.0005726,50]
[321143998,1711908687076,-500.0,0.0005726,120]
[321143999,1711908687086,-13825.51,0.0005726,120]
[321144000,1711908687095,-4835.83,0.0005726,120]
[321144001,1711908687104,-500.0,0.0005726,120]
[321144002,1711908687113,-500.0,0.0005726,120]
[321144003,1711908687122,-645.15,0.0005726,120]
[321144004,1711908687131,-500.0,0.0005726,120]
[321144005,1711908687140,-500.0,0.0005726,120]
[321144006,1711908687149,-1596.31,0.0005726,120]
[321144007,1711908687158,-500.0,0.0005726,120]
[321144008,1711908687167,-810.88,0.0005726,120]
[321144009,1711908687176,-10458.37,0.0005726,120]
[321144010,1711908687186,-1071.85,0.0005726,120]
[321144011,1711908687195,-520.56,0.0005726,120]
[321144012,1711908687204,-500.0,0.0005726,120]
[321144013,1711908687213,-500.0,0.0005726,120]
[321144014,1711908687223,-633.58,0.0005726,120]
[321144015,1711908687232,-515.51,0.0005726,120]
[321144016,1711908687241,-152.99,0.0005726,120]
[321144017,1711908687250,-500.0,0.0005726,120]
[321144018,1711908687260,-500.0,0.0005726,120]
[321144019,1711908687271,-956.86,0.0005726,120]
[321144020,1711908687280,-500.0,0.0005726,120]
[321144021,1711908687289,-500.0,0.0005726,120]
[321144022,1711908687297,-500.0,0.0005726,120]
[321144023,1711908687306,-1008.24,0.0005726,120]
[321144024,1711908687315,-500.0,0.0005726,120]
[321144025,1711908687324,-514.26,0.0005726,120]
[321144026,1711908687333,-500.0,0.0005726,120]
[321144027,1711908687342,-182.28553299,0.0005726,120]
[321144028,1711908687350,-500.0,0.0005726,120]
[321144029,1711908687359,-500.0,0.0005726,120]
[321144030,1711908687367,-1713.58,0.0005726,21]
[321144031,1711908687376,-500.0,0.0005726,120]
[321144032,1711908687385,-647.03,0.0005726,120]
[321144033,1711908687394,-761.78,0.0005726,120]
[321144034,1711908687403,-1017.54,0.0005726,120]
[321144035,1711908687411,-1083.62,0.0005726,120]
[321144036,1711908687420,-500.0,0.0005726,120]
[321144037,1711908687429,-1151.56,0.0005726,120]
[321144038,1711908687439,-500.0,0.0005726,120]
[321144039,1711908687449,-705.26,0.0005726,120]
[321144040,1711908687458,-1812.14,0.0005726,120]
[321144041,1711908687467,-500.0,0.0005726,120]
[321144042,1711908687480,-500.0,0.0005726,120]
[321144043,1711908687491,-3632.67,0.0005726,120]
[321144044,1711908687501,-777.77,0.0005726,120]
[321144045,1711908687510,-500.0,0.0005726,120]
[321144046,1711908687520,-2065.04,0.0005726,120]
[321144047,1711908687529,-500.0,0.0005726,120]
[321144048,1711908687538,-500.0,0.0005726,120]
[321144049,1711908687547,-500.0,0.0005726,120]
[321144050,1711908687558,-500.0,0.0005726,120]
[321144051,1711908687568,-1086.78,0.0005726,120]
[321144052,1711908687578,-1708.94,0.0005726,120]
[321144053,1711908687588,-500.0,0.0005726,120]
[321144054,1711908687598,-1274.25,0.0005726,120]
[321144055,1711908687607,-10405.37,0.0005726,120]
[321144056,1711908687617,-500.0,0.0005726,120]
[321144057,1711908687628,-2816.51,0.0005726,120]
[321144058,1711908687638,-226.27,0.0005726,120]
[321144059,1711908687647,-500.0,0.0005726,120]
[321144060,1711908687657,-500.0,0.0005726,120]
[321144061,1711908687667,-587.31,0.0005726,120]
[321144062,1711908687676,-574.2,0.0005726,120]
[321144063,1711908687686,-440.54,0.0005726,120]
[321144064,1711908687701,-500.0,0.0005726,120]
[321144065,1711908687711,-2188.08,0.0005726,120]
[321144066,1711908687720,-500.0,0.0005726,120]
[321144067,1711908687730,-500.0,0.0005726,120]
[321144068,1711908687740,-505.55,0.0005726,120]
[321144069,1711908687752,-614.57,0.0005726,120]
[321144070,1711908687761,-819.73,0.0005726,120]
[321144071,1711908687772,-500.0,0.0005726,120]
[321144072,1711908687783,-500.0,0.0005726,120]
[321144073,1711908687792,-500.0,0.0005726,120]
[321144074,1711908687801,-4649.04,0.0005726,120]
[321144075,1711908687811,-500.0,0.0005726,120]
[321144076,1711908687821,-707.12,0.0005726,120]
[321144077,1711908687830,-2267.81,0.0005726,120]
[321144078,1711908687840,-5133.4,0.0005726,120]
[321144079,1711908687850,-1480.3,0.0005726,120]
[321144080,1711908687863,-805.22,0.0005726,120]
[321144081,1711908687873,-256.09,0.0005726,120]
[321144082,1711908687882,-1427.42,0.0005726,120]
[321144083,1711908687891,-2273.08,0.0005726,120]
[321144084,1711908687901,-500.0,0.0005726,120]
[321144085,1711908687910,-6661.02,0.0005726,120]
[321144086,1711908687920,-4444.01,0.0005726,120]
[321144087,1711908687929,-642.39,0.0005726,120]
[321144088,1711908687939,-151.6,0.0005726,120]
[321144089,1711908687948,-500.0,0.0005726,120]
[321144090,1711908687957,-572.95,0.0005726,120]
[321144091,1711908687966,-6431.04,0.0005726,120]
[321144092,1711908687976,-2363.15,0.0005726,120]
[321144093,1711908687985,-500.0,0.0005726,120]
[321144094,1711908687994,-899.44,0.0005726,120]
[321144095,1711908688003,-528.9,0.0005726,120]
[321144096,1711908688012,-1651.19,0.0005726,120]
[321144097,1711908688022,-512.64,0.0005726,120]
[321144098,1711908688031,-500.0,0.0005726,120]
[321144099,1711908688041,-589.25,0.0005726,120]
[321144100,1711908688053,-1275.53,0.0005726,120]
[321144101,1711908688063,-4862.95,0.0005726,120]
[321144102,1711908688072,-500.0,0.0005726,120]
[321144103,1711908688082,-1488.24,0.0005726,120]
[321144104,1711908688091,-816.26,0.0005726,120]
[321144105,1711908688100,-1110.2,0.0005726,120]
[321144106,1711908688109,-669.65,0.0005726,120]
[321144107,1711908688118,-500.0,0.0005726,120]
[321144108,1711908688127,-3231.72,0.0005726,120]
[321144109,1711908688137,-642.72,0.0005726,120]
[321144110,1711908688146,-705.23,0.0005726,120]
[321144111,1711908688156,-713.19,0.0005726,120]
[321144112,1711908688165,-2389.97,0.0005726,120]
[321144113,1711908688175,-500.0,0.0005726,120]
[321144114,1711908688184,-648.84,0.0005726,120]
[321144115,1711908688194,-500.0,0.0005726,120]
[321144116,1711908688203,-1994.62,0.0005726,120]
[321144117,1711908688213,-2619.63,0.0005726,120]
[321144118,1711908688223,-500.0,0.0005726,120]
[321144119,1711908688233,-500.0,0.0005726,120]
[321144120,1711908688243,-500.0,0.0005726,120]
[321144121,1711908688252,-500.0,0.0005726,16]
[321144122,1711908688262,-500.0,0.0005726,120]
[321144123,1711908688271,-4661.97,0.0005726,120]
[321144124,1711908688281,-3992.88,0.0005726,120]
[321144125,1711908688291,-1467.45,0.0005726,120]
[321144126,1711908688300,-7813.73,0.0005726,120]
[321144127,1711908688310,-2947.07,0.0005726,120]
[321144128,1711908688320,-595.08,0.0005726,120]
[321144129,1711908688329,-500.0,0.0005726,120]
[321144130,1711908688338,-635.56,0.0005726,120]
[321144131,1711908688347,-1656.13,0.0005726,120]
[321144132,1711908688356,-500.0,0.0005726,120]
[321144133,1711908688365,-697.65,0.0005726,120]
[321144134,1711908688375,-500.0,0.0005726,120]
[321144135,1711908688385,-500.0,0.0005726,120]
[321144136,1711908688394,-709.24,0.0005726,120]
[321144137,1711908688403,-500.0,0.0005726,120]
[321144138,1711908688415,-567.42,0.0005726,120]
[321144139,1711908688425,-729.76,0.0005726,120]
[321144140,1711908688435,-452.59,0.0005726,120]
[321144141,1711908688444,-2362.9,0.0005726,120]
[321144142,1711908688453,-500.0,0.0005726,120]
[321144143,1711908688463,-500.0,0.0005726,120]
[321144144,1711908688472,-381.04,0.0005728,2]
[321144145,1711908688481,-2197.0486023,0.00057475,120]
[321144146,1711908688491,-2500.0,0.000575,120]
[321144147,1711908688500,-182933.7,0.00057507,6]
[321144148,1711908688510,-11808.73,0.00057507,6]
[321144149,1711908688519,-41602.27,0.00057507,6]
[321144150,1711908688528,-56941.97,0.00057507,6]
[321144151,1711908688537,-32589.58,0.00057507,6]
[321144152,1711908688546,-26076.13,0.00057507,6]
[321144153,1711908688557,-4093.64,0.00057507,6]
[321144154,1711908688566,-100262.92,0.00057507,6]
[321144155,1711908688576,-26664.22,0.00057507,6]
[321144156,1711908688585,-16512.28,0.00057507,6]
[321144157,1711908688594,-292.52630791,0.00057512,36]
[321144158,1711908688603,-2101.29074777,0.00057534,120]
[321144159,1711908688612,-500.0,0.00057534,120]
[321144160,1711908688621,-175.0,0.00057534,120]
[321144161,1711908688630,-500.0,0.00057534,120]
[321144162,1711908688640,-500.0,0.00057534,120]
[321144163,1711908688649,-418.35881246,0.00057534,120]
[321144164,1711908688658,-500.0,0.00057534,120]
[321144165,1711908688668,-500.0,0.00057534,120]
[321144166,1711908688678,-500.0,0.00057534,120]
[321144167,1711908688687,-500.0,0.00057534,120]
[321144168,1711908688700,-500.0,0.00057534,120]
[321144169,1711908688709,-500.0,0.00057534,120]
[321144170,1711908688718,-208.81487158,0.00057534,120]
[321144171,1711908688728,-500.0,0.00057534,120]
[321144172,1711908688737,-500.0,0.00057534,120]
[321144173,1711908688746,-500.0,0.00057534,120]
[321144174,1711908688755,-419.10759805,0.00057534,120]
[321144175,1711908688764,-500.0,0.00057534,120]
[321144176,1711908688774,-500.0,0.00057534,120]
[321144177,1711908688784,-500.0,0.00057534,120]
[321144178,1711908688793,-500.0,0.00057534,120]
[321144179,1711908688802,-500.0,0.00057534,120]
[321144180,1711908688811,-500.0,0.00057534,120]
[321144181,1711908688821,-664.54,0.00057534,120]
[321144182,1711908688830,-500.0,0.00057534,120]
[321144183,1711908688839,-500.0,0.00057534,120]
[321144184,1711908688849,-500.0,0.00057534,120]
[321144185,1711908688858,-1004.03,0.00057534,120]
[321144186,1711908688867,-150.0,0.00057534,120]
[321144187,1711908688876,-641.39,0.00057534,120]
[321144188,1711908688885,-500.0,0.00057534,120]
[321144189,1711908688894,-804.28,0.00057534,120]
[321144190,1711908688903,-914.67,0.00057534,120]
[321144191,1711908688912,-500.0,0.00057534,120]
[321144192,1711908688921,-510.44,0.00057534,120]
[321144193,1711908688930,-500.0,0.00057534,120]
[321144194,1711908688940,-1062.57,0.00057534,120]
[321144195,1711908688949,-500.0,0.00057534,120]
[321144196,1711908688958,-500.0,0.00057534,120]
[321144197,1711908688968,-500.0,0.00057534,120]
[321144198,1711908688977,-500.0,0.00057534,120]
[321144199,1711908688986,-500.0,0.00057534,120]
[321144200,1711908688995,-500.0,0.00057534,2]
[321144201,1711908689166,-500.0,0.00057534,120]
[321144202,1711908689175,-980.98,0.00057534,120]
[321144203,1711908689184,-500.0,0.00057534,120]
[321144204,1711908689193,-649.12,0.00057534,120]
[321144205,1711908689202,-500.0,0.00057534,120]
[321144206,1711908689211,-199.36,0.00057534,120]
[321144207,1711908689219,-529.82,0.00057534,120]
[321144208,1711908689229,-500.0,0.00057534,120]
[321144209,1711908689238,-691.41,0.00057534,120]
[321144210,1711908689247,-500.0,0.00057534,120]
[321144211,1711908689256,-500.0,0.00057534,120]
[321144212,1711908689266,-199.81,0.00057534,120]
[321144213,1711908689275,-500.0,0.00057534,120]
[321144214,1711908689284,-521.69,0.00057534,120]
[321144215,1711908689293,-500.0,0.00057534,120]
[321144216,1711908689302,-535.03,0.00057534,120]
[321144217,1711908689311,-834.12,0.00057534,120]
[321144218,1711908689320,-500.0,0.00057534,120]
[321144219,1711908689329,-500.0,0.00057534,120]
[321144220,1711908689338,-597.15,0.00057534,120]
[321144221,1711908689347,-500.0,0.00057534,120]
[321144222,1711908689355,-2161.52,0.00057534,120]
[321144223,1711908689364,-523.05,0.00057534,120]
[321144224,1711908689373,-500.0,0.00057534,120]
[321144225,1711908689382,-851.6,0.00057534,120]
[321144226,1711908689391,-500.0,0.00057534,120]
[321144227,1711908689401,-500.0,0.00057534,120]
[321144228,1711908689410,-500.0,0.00057534,120]
[321144229,1711908689419,-1120.95,0.00057534,120]
[321144230,1711908689428,-500.0,0.00057534,50]
[321144231,1711908689437,-500.0,0.00057534,120]
[321144232,1711908689446,-13825.51,0.00057534,120]
[321144233,1711908689455,-4835.83,0.00057534,120]
[321144234,1711908689464,-500.0,0.00057534,120]
[321144235,1711908689473,-500.0,0.00057534,120]
[321144236,1711908689482,-645.15,0.00057534,120]
[321144237,1711908689491,-500.0,0.00057534,120]
[321144238,1711908689500,-500.0,0.00057534,120]
[321144239,1711908689509,-1596.31,0.00057534,120]
[321144240,1711908689518,-500.0,0.00057534,120]
[321144241,1711908689529,-810.88,0.00057534,120]
[321144242,1711908689539,-10458.37,0.00057534,120]
[321144243,1711908689551,-1071.85,0.00057534,120]
[321144244,1711908689560,-520.56,0.00057534,120]
[321144245,1711908689570,-500.0,0.00057534,120]
[321144246,1711908689579,-500.0,0.00057534,120]
[321144247,1711908689590,-515.51,0.00057534,120]
[321144248,1711908689600,-500.0,0.00057534,120]
[321144249,1711908689609,-500.0,0.00057534,120]
[321144250,1711908689620,-956.86,0.00057534,120]
[321144251,1711908689629,-500.0,0.00057534,120]
[321144252,1711908689638,-500.0,0.00057534,120]
[321144253,1711908689646,-189.09,0.00057534,120]
[321144254,1711908689658,-1008.24,0.00057534,120]
[321144255,1711908689667,-500.0,0.00057534,120]
[321144256,1711908689677,-514.26,0.00057534,120]
[321144257,1711908689686,-228.47,0.00057534,120]
[321144258,1711908689700,-500.0,0.00057534,120]
[321144259,1711908689709,-500.0,0.00057534,120]
[321144260,1711908689718,-1713.58,0.00057534,21]
[321144261,1711908689727,-500.0,0.00057534,120]
[321144262,1711908689736,-647.03,0.00057534,120]
[321144263,1711908689745,-761.78,0.00057534,120]
[321144264,1711908689754,-1017.54,0.00057534,120]
[321144265,1711908689763,-1083.62,0.00057534,120]
[321144266,1711908689772,-187.21,0.00057534,120]
[321144267,1711908689781,-1151.56,0.00057534,120]
[321144268,1711908689789,-556.16076445,0.00057534,120]
[321144269,1711908689798,-705.26,0.00057534,120]
[321144270,1711908689807,-1812.14,0.00057534,120]
[321144271,1711908689816,-530.69,0.00057534,120]
[321144272,1711908689826,-475.32,0.00057534,120]
[321144273,1711908689836,-3632.67,0.00057534,120]
[321144274,1711908689845,-777.77,0.00057534,120]
[321144275,1711908689854,-500.0,0.00057534,120]
[321144276,1711908689863,-2065.04,0.00057534,120]
[321144277,1711908689873,-596.1,0.00057534,120]
[321144278,1711908689882,-500.0,0.00057534,120]
[321144279,1711908689891,-500.0,0.00057534,120]
[321144280,1711908689899,-500.0,0.00057534,120]
[321144281,1711908689909,-1086.78,0.00057534,120]
[321144282,1711908689918,-1708.94,0.00057534,120]
[321144283,1711908689927,-500.0,0.00057534,120]
[321144284,1711908689937,-1274.25,0.00057534,120]
[321144285,1711908689946,-10405.37,0.00057534,120]
[321144286,1711908689955,-500.0,0.00057534,120]
[321144287,1711908689964,-2816.51,0.00057534,120]
[321144288,1711908689974,-500.0,0.00057534,120]
[321144289,1711908689983,-500.0,0.00057534,120]
[321144290,1711908689992,-587.31,0.00057534,120]
[321144291,1711908690001,-574.2,0.00057534,120]
[321144292,1711908690011,-489.27,0.00057534,120]
[321144293,1711908690021,-2188.08,0.00057534,120]
[321144294,1711908690030,-500.0,0.00057534,120]
[321144295,1711908690039,-500.0,0.00057534,120]
[321144296,1711908690048,-505.55,0.00057534,120]
[321144297,1711908690058,-819.73,0.00057534,120]
[321144298,1711908690067,-500.0,0.00057534,120]
[321144299,1711908690077,-500.0,0.00057534,120]
[321144300,1711908690086,-500.0,0.00057534,120]
[321144301,1711908690095,-4649.04,0.00057534,120]
[321144302,1711908690104,-500.0,0.00057534,120]
[321144303,1711908690113,-707.12,0.00057534,120]
[321144304,1711908690123,-2267.81,0.00057534,120]
[321144305,1711908690132,-5133.4,0.00057534,120]
[321144306,1711908690141,-1480.3,0.00057534,120]
[321144307,1711908690150,-805.22,0.00057534,120]
[321144308,1711908690160,-1427.42,0.00057534,120]
[321144309,1711908690169,-2273.08,0.00057534,120]
[321144310,1711908690179,-500.0,0.00057534,120]
[321144311,1711908690189,-6661.02,0.00057534,120]
[321144312,1711908690198,-4444.01,0.00057534,120]
[321144313,1711908690208,-642.39,0.00057534,120]
[321144314,1711908690218,-476.74,0.00057534,120]
[321144315,1711908690227,-572.95,0.00057534,120]
[321144316,1711908690236,-6431.04,0.00057534,120]
[321144317,1711908690245,-2363.15,0.00057534,120]
[321144318,1711908690255,-500.0,0.00057534,120]
[321144319,1711908690265,-899.44,0.00057534,120]
[321144320,1711908690274,-1651.19,0.00057534,120]
[321144321,1711908690283,-512.64,0.00057534,120]
[321144322,1711908690292,-500.0,0.00057534,120]
[321144323,1711908690302,-1275.53,0.00057534,120]
[321144324,1711908690311,-4862.95,0.00057534,120]
[321144325,1711908690321,-392.79,0.00057534,120]
[321144326,1711908690329,-1488.24,0.00057534,120]
[321144327,1711908690338,-816.26,0.00057534,120]
[321144328,1711908690347,-1110.2,0.00057534,120]
[321144329,1711908690356,-669.65,0.00057534,120]
[321144330,1711908690365,-500.0,0.00057534,120]
[321144331,1711908690374,-3231.72,0.00057534,120]
[321144332,1711908690383,-642.72,0.00057534,120]
[321144333,1711908690392,-705.23,0.00057534,120]
[321144334,1711908690402,-713.19,0.00057534,120]
[321144335,1711908690410,-2389.97,0.00057534,120]
[321144336,1711908690420,-500.0,0.00057534,120]
[321144337,1711908690429,-648.84,0.00057534,120]
[321144338,1711908690438,-500.0,0.00057534,120]
[321144339,1711908690448,-1994.62,0.00057534,120]
[321144340,1711908690457,-2619.63,0.00057534,120]
[321144341,1711908690467,-500.0,0.00057534,120]
[321144342,1711908690476,-500.0,0.00057534,120]
[321144343,1711908690486,-193.44,0.00057534,120]
[321144344,1711908690496,-500.0,0.00057534,16]
[321144345,1711908690506,-500.0,0.00057534,120]
[321144346,1711908690515,-4661.97,0.00057534,120]
[321144347,1711908690525,-3992.88,0.00057534,120]
[321144348,1711908690536,-1467.45,0.00057534,120]
[321144349,1711908690546,-7813.73,0.00057534,120]
[321144350,1711908690555,-2947.07,0.00057534,120]
[321144351,1711908690565,-595.08,0.00057534,120]
[321144352,1711908690574,-500.0,0.00057534,120]
[321144353,1711908690585,-635.56,0.00057534,120]
[321144354,1711908690595,-1656.13,0.00057534,120]
[321144355,1711908690604,-500.0,0.00057534,120]
[321144356,1711908690613,-697.65,0.00057534,120]
[321144357,1711908690623,-500.0,0.00057534,120]
[321144358,1711908690632,-500.0,0.00057534,120]
[321144359,1711908690642,-709.24,0.00057534,120]
[321144360,1711908690653,-500.0,0.00057534,120]
[321144361,1711908690662,-567.42,0.00057534,120]
[321144362,1711908690672,-729.76,0.00057534,120]
[321144363,1711908690681,-2362.9,0.00057534,120]
[321144364,1711908690692,-500.0,0.00057534,120]
[321144365,1711908690704,-500.0,0.00057534,120]
[321144366,1711908690715,-45588.15,0.00057673,6]
[321144367,1711908690723,-45332.38,0.00057673,6]
[321144368,1711908690732,-500.0,0.00057808,120]
[321144369,1711908690743,-166.11,0.00057808,120]
[321144370,1711908690752,-500.0,0.00057808,120]
[321144371,1711908690761,-500.0,0.00057808,120]
[321144372,1711908690772,-500.0,0.00057808,120]
[321144373,1711908690781,-297.93137574,0.00057808,120]
[321144374,1711908690790,-500.0,0.00057808,120]
[321144375,1711908690799,-500.0,0.00057808,120]
[321144376,1711908690809,-644.09937226,0.00057808,120]
[321144377,1711908690820,-500.0,0.00057808,120]
[321144378,1711908690830,-500.0,0.00057808,120]
[321144379,1711908690839,-500.0,0.00057808,120]
[321144380,1711908690851,-500.0,0.00057808,120]
[321144381,1711908690861,-500.0,0.00057808,120]
[321144382,1711908690870,-500.0,0.00057808,120]
[321144383,1711908690879,-500.0,0.00057808,120]
[321144384,1711908690888,-500.0,0.00057808,120]
[321144385,1711908690898,-500.0,0.00057808,120]
[321144386,1711908690907,-664.54,0.00057808,120]
[321144387,1711908690916,-500.0,0.00057808,120]
[321144388,1711908690925,-633.78739878,0.00057808,120]
[321144389,1711908690933,-1004.03,0.00057808,120]
[321144390,1711908690943,-500.0,0.00057808,120]
[321144391,1711908690951,-150.0,0.00057808,120]
[321144392,1711908690961,-500.0,0.00057808,120]
[321144393,1711908690970,-804.28,0.00057808,120]
[321144394,1711908690979,-914.67,0.00057808,120]
[321144395,1711908690988,-316.06120263,0.00057808,120]
[321144396,1711908690997,-510.44,0.00057808,120]
[321144397,1711908691006,-500.0,0.00057808,120]
[321144398,1711908691016,-1062.57,0.00057808,120]
[321144399,1711908691026,-500.0,0.00057808,120]
[321144400,1711908691035,-500.0,0.00057808,120]
[321144401,1711908691045,-500.0,0.00057808,120]
[321144402,1711908691055,-500.0,0.00057808,120]
[321144403,1711908691063,-500.0,0.00057808,120]
[321144404,1711908691073,-500.0,0.00057808,2]
[321144405,1711908691082,-500.0,0.00057808,120]
[321144406,1711908691091,-980.98,0.00057808,120]
[321144407,1711908691099,-500.0,0.00057808,120]
[321144408,1711908691108,-390.88,0.00057808,120]
[321144409,1711908691118,-529.82,0.00057808,120]
[321144410,1711908691126,-500.0,0.00057808,120]
[321144411,1711908691136,-691.41,0.00057808,120]
[321144412,1711908691145,-513.76,0.00057808,120]
[321144413,1711908691154,-500.0,0.00057808,120]
[321144414,1711908691164,-500.0,0.00057808,120]
[321144415,1711908691173,-500.0,0.00057808,120]
[321144416,1711908691182,-535.03,0.00057808,120]
[321144417,1711908691192,-834.12,0.00057808,120]
[321144418,1711908691201,-500.0,0.00057808,120]
[321144419,1711908691210,-500.0,0.00057808,120]
[321144420,1711908691220,-597.15,0.00057808,120]
[321144421,1711908691228,-500.0,0.00057808,120]
[321144422,1711908691238,-2161.52,0.00057808,120]
[321144423,1711908691247,-523.05,0.00057808,120]
[321144424,1711908691255,-500.0,0.00057808,120]
[321144425,1711908691264,-851.6,0.00057808,120]
[321144426,1711908691273,-500.0,0.00057808,120]
[321144427,1711908691282,-500.0,0.00057808,120]
[321144428,1711908691292,-500.0,0.00057808,120]
[321144429,1711908691301,-1120.95,0.00057808,120]
[321144430,1711908691310,-500.0,0.00057808,50]
[321144431,1711908691319,-500.0,0.00057808,120]
[321144432,1711908691328,-13825.51,0.00057808,120]
[321144433,1711908691337,-4835.83,0.00057808,120]
[321144434,1711908691346,-500.0,0.00057808,120]
[321144435,1711908691355,-500.0,0.00057808,120]
[321144436,1711908691364,-645.15,0.00057808,120]
[321144437,1711908691373,-500.0,0.00057808,120]
[321144438,1711908691382,-500.0,0.00057808,120]
[321144439,1711908691390,-1596.31,0.00057808,120]
[321144440,1711908691400,-500.0,0.00057808,120]
[321144441,1711908691408,-810.88,0.00057808,120]
[321144442,1711908691418,-10458.37,0.00057808,120]
[321144443,1711908691426,-1071.85,0.00057808,120]
[321144444,1711908691436,-520.56,0.00057808,120]
[321144445,1711908691445,-500.0,0.00057808,120]
[321144446,1711908691454,-500.0,0.00057808,120]
[321144447,1711908691463,-515.51,0.00057808,120]
[321144448,1711908691472,-301.71,0.00057808,120]
[321144449,1711908691481,-500.0,0.00057808,120]
[321144450,1711908691490,-956.86,0.00057808,120]
[321144451,1711908691499,-500.0,0.00057808,120]
[321144452,1711908691508,-500.0,0.00057808,120]
[321144453,1711908691517,-1008.24,0.00057808,120]